[Event "Krakow Championship-A 2022"]
[Site "Krakow"]
[Date "2022.07.01"]
[Round "8.6"]
[White "Leniart, Arkadiusz"]
[Black "Kozak, Antoni"]
[Result "1-0"]
[ECO "B91"]
[WhiteElo "2473"]
[BlackElo "2459"]
[Annotator "TA"]
[PlyCount "81"]
[EventDate "2022.06.25"]
[EventType "swiss"]
[EventCountry "POL"]
[SourceTitle "playchess.com"]
[Source "ChessBase"]
[SourceQuality "1"]
[TimeControl "40/5400+30:1800+30"]

{[%evp 11,80,11,25,23,20,20,33,47,53,35,37,-50,-43,-61,0,-27,-23,-25,17,15,25,22,12,-31,-35,-22,-22,-25,-42,-32,-38,-59,-52,-109,-69,-85,0,-12,-12,-6,44,47,54,41,57,50,49,0,0,0,0,0,0,0,0,0,1189,1185,1068,1060,29988,5931,29992,4814,29994,29995,29997,29998,29998,29999,29999]} 1. e4 {[%emt 0:00:10]} c5 {[%emt 0:00:04]} 2. Nf3 {[%emt 0:00:04]} d6 {[%emt 0:00:03]} 3. d4 {[%emt 0:00:04]} cxd4 {[%emt 0:00:02]} 4. Nxd4 {[%emt 0:00:03]} Nf6 {[%emt 0:00:03]} 5. Nc3 {[%emt 0:00:06]} a6 {[%emt 0:00:05]} 6. g3 {[%emt 0:00:02]} g6 {[%emt 0:00:17]} 7. Bg2 {[%emt 0:00:15] B91: Sicilian Najdorf: 6 g3.} Bg7 {[%emt 0:00:04]} 8. O-O {[%emt 0:00:12]} Bg4 {[%emt 0:00:02]} 9. Nde2 {[%emt 0:03:03] [#] White is slightly better.} Qc8 $146 {[%emt 0:04:11]} ({Predecessor:} 9... Nc6 10. h3 Bd7 11. Be3 h5 12. Nd5 O-O 13. Nb6 Rb8 14. c4 Be8 15. Qd2 Nd7 {½-½ (36) Haddouche,M (2492)-Adly,A (2620) Oran 2017}) 10. Bg5 {[%emt 0:08:06]} Nc6 {[%emt 0:17:42]} 11. Bxf6 {[%emt 0:13:52]} (11. f3 $14 Be6 12. Qd2) 11... Bxf6 $15 {[%emt 0:00:32]} 12. Nd5 {[%emt 0:00:13] [#]} Bd4 {[%emt 0:00:48] Against Nb6} 13. c3 (13. Kh1 $5 {[%cal Rf2f3]} Bxe2 14. Qxe2 $11) 13... Ba7 14. Kh1 {[%emt 0:04:47]} Kf8 {[%emt 0:04:30]} (14... h5 $5 {[%cal Rh5h4]}) 15. f3 {[%emt 0:03:25]} Bh3 {[%emt 0:01:08]} 16. Bxh3 {[%emt 0:05:47]} Qxh3 {[%emt 0:00:06]} 17. g4 {[%emt 0:06:56]} Qh4 {[%emt 0:12:09]} 18. Nef4 {[%emt 0:10:34]} h5 {[%emt 0:06:02]} 19. Ng2 $1 {[%emt 0:14:13]} Qg5 {[%emt 0:00:15] aiming for ...hxg4.} 20. f4 $1 {[%emt 0:00:16]} Qxg4 {[%emt 0:00:25]} 21. Rf3 {[%emt 0:01:54]} Qd7 {[%emt 0:03:44]} 22. Qb3 {[%emt 0:02:15]} (22. f5 $15) 22... Rd8 {[%emt 0:03:31]} 23. Raf1 {[%emt 0:01:21]} e6 {[%emt 0:07:07]} ({Black should try} 23... h4 $17 24. Nb6 Qc7) 24. f5 $1 $11 {[%emt 0:04:45]} gxf5 {[%emt 0:03:30] And now ...Ne5 would win.} (24... exd5 $2 25. fxg6 Ne5 26. Rxf7+ Nxf7 27. Rxf7+ Qxf7 28. gxf7 $18) 25. Nf6 {[%emt 0:00:05]} Qe7 {[%emt 0:01:01] [#]} (25... Qc8 $1 $11 26. exf5 Ne5) 26. exf5 $1 $14 {[%emt 0:00:10]} Ne5 {[%emt 0:02:58] [#]} (26... Qxf6 27. fxe6 Qe7 28. Rxf7+ Ke8 29. Rxe7+ Nxe7 30. Qxb7 $18) 27. Rf4 {[%emt 0:04:39] Threatens to win with fxe6.} Nd3 $1 {[%emt 0:08:54] [#]} (27... Qxf6 $2 28. fxe6 Qg5 29. Rf5 $18 (29. Qxb7 Rg8 $14)) 28. fxe6 $1 {[%emt 0:01:25]} Qxe6 {[%emt 0:05:57]} ({Not} 28... Nxf4 29. Nxf4 (29. Rxf4 Qxe6 30. Qxb7 Bc5 $17) 29... Qxf6 30. e7+ Ke8 31. exd8=N (31. exd8=R+ Kxd8 32. Qxb7 Be3 $16) 31... Kxd8 32. Qxb7 $16) 29. Qxe6 {[%emt 0:02:20]} (29. R4f3 $14 {might be stronger.} Qxb3 30. axb3) 29... fxe6 $11 {[%emt 0:00:05]} 30. R4f3 $36 {[%emt 0:00:24][%cal Bf4f3,Bf3g3,Bg3g7,Bg7h7][%mdl 2080] White fights for an advantage.} Ne5 {[%emt 0:00:44]} (30... Nxb2 $2 31. Rb1 Ke7 32. Rxb2 $18) 31. Rg3 {[%emt 0:01:02] Hoping for Nf4.} h4 {[%emt 0:04:10]} 32. Nh7+ {[%emt 0:04:02][%mdl 64] Discovered Attack (Double check). Pair of Knights!} Ke8 {[%emt 0:00:02]} 33. Rg7 {[%emt 0:00:10] Black must now prevent Nf6+.} Ng4 {[%emt 0:01:30][%mdl 8192]} 34. Rff7 $18 {[%emt 0:04:11][%csl Gg7][%cal Rf7e7]} Rxh7 {[%emt 0:01:17]} 35. Rxh7 {[%emt 0:00:08]} h3 {[%emt 0:00:02] [#]} 36. Nf4 {[%emt 0:02:56]} (36. Rxb7 $142 $1 Rd7 (36... hxg2+ 37. Kxg2) 37. Rbxd7 hxg2+ 38. Kxg2 Nf6 39. Rhe7+ Kf8 40. Rxa7 Ne8 41. h4) 36... Nf2+ {[%emt 0:00:12]} 37. Kg1 {[%emt 0:00:06]} Ne4+ {[%emt 0:00:23]} 38. Kf1 {[%emt 0:00:08] White mates.} Ng5 {[%emt 0:00:02]} 39. Re7+ {[%emt 0:00:06]} Kf8 {[%emt 0:00:02]} 40. Ng6+ {[%emt 0:00:07]} Kg8 {[%emt 0:00:03]} 41. Reg7# {[%emt 0:30:05] Weighted Error Value: White=0.11 (very precise) /Black=0.56} 1-0

[Event "Krakow Championship-A 2022"]
[Site "Krakow"]
[Date "2022.07.01"]
[Round "8.7"]
[White "Romanishin, Oleg M"]
[Black "Balaji Sekar"]
[Result "1-0"]
[ECO "A05"]
[WhiteElo "2400"]
[BlackElo "1189"]
[Annotator "TA"]
[PlyCount "109"]
[EventDate "2022.06.25"]
[EventType "swiss"]
[EventCountry "POL"]
[SourceTitle "playchess.com"]
[Source "ChessBase"]
[SourceQuality "1"]
[TimeControl "40/5400+30:1800+30"]

{[%evp 17,109,4,6,4,4,0,2,2,2,2,7,-14,-13,-11,-7,-35,-21,-33,0,0,0,0,6,6,7,-20,24,12,28,0,7,0,0,0,0,0,0,0,0,0,0,-4,0,0,0,-16,48,0,0,0,0,0,0,0,9,1,1,0,8,8,186,185,180,172,265,252,278,276,274,276,384,370,292,284,851,820,825,799,885,653,1097,1060,1637,1568,10956,10813,29977,29978,29983,29984,29984,29985,29984,29985]} 1. Nf3 {[%emt 0:00:03]} Nf6 {[%emt 0:00:06]} 2. g3 {[%emt 0:00:11]} d5 {[%emt 0:00:08]} 3. Bg2 {[%emt 0:00:05]} c5 {[%emt 0:00:14]} 4. O-O {[%emt 0:00:20]} e6 {[%emt 0:00:09]} 5. d4 {[%emt 0:00:08]} Nc6 {[%emt 0:07:10]} 6. c4 {[%emt 0:00:11]} dxc4 {[%emt 0:00:18]} 7. Ne5 {[%emt 0:00:15]} Bd7 {[%emt 0:00:13]} 8. Na3 {[%emt 0:01:25]} cxd4 {[%emt 0:01:42]} 9. Naxc4 {[%emt 0:00:19]} Be7 {[%emt 0:00:16] is more profitable than 9...Bc5 at the moment.} 10. Qb3 {[%emt 0:04:38] E04: Open Catalan: 5 Nf3.} Qc7 {[%emt 0:00:43]} 11. Bf4 {[%emt 0:02:58]} Nh5 {[%emt 0:00:37]} 12. Nxc6 {[%emt 0:15:46][%mdl 64] Discovered Attack. The position is equal.} Nxf4 {[%emt 0:00:15]} 13. Nxe7 {[%emt 0:00:10] Pair of Knights!} Nxg2 {[%emt 0:00:38]} 14. Kxg2 {[%emt 0:28:02][%cal Of1d1]} (14. Rac1 $5 Kxe7 15. Qa3+ Kf6 16. Qf3+ Ke7 17. Qa3+ Kf6 18. Qf3+ Ke7 19. Qa3+ $11) 14... Qc5 {[%emt 0:00:28] [#]} 15. Rac1 $146 {[%emt 0:11:02][%cal Of2f4]} ({Predecessor:} 15. Ng8 Rxg8 16. Rac1 Bc6+ 17. f3 O-O-O 18. Ne3 Qb6 19. Qxb6 axb6 20. Nc4 Kc7 21. Rfd1 {0-1 (43) Hachenthal,M-Holtorf,P GER email 2008}) 15... Kxe7 {[%emt 0:01:57]} 16. Nd2 {[%emt 0:00:33]} Bc6+ {[%emt 0:01:33]} 17. f3 {[%emt 0:00:17]} Qd5 {[%emt 0:10:48]} 18. Qa3+ $1 {[%emt 0:00:32]} Qd6 {[%emt 0:00:18]} 19. Rc5 {[%emt 0:00:13]} Rac8 $1 {[%emt 0:20:22]} 20. Rfc1 $1 {[%emt 0:00:09]} (20. Nc4 $2 Bxf3+ $1 21. Qxf3 Qxc5 $17) 20... f5 {[%emt 0:12:37] Inhibits Ne4.} 21. b4 {[%emt 0:00:09] Nc4 is the strong threat.} a5 {[%emt 0:21:33]} (21... b6 $5 {[%cal Rb6c5]} 22. R5c2 (22. Qxa7+ $2 Rc7 $17) 22... Kf6 $11) 22. bxa5 {[%emt 0:07:44]} Rhd8 {[%emt 0:02:27]} 23. Kf2 {[%emt 0:03:49] And now Nc4 would win.} Bd5 {[%emt 0:02:27]} 24. Rc7+ {[%emt 0:06:44]} Rxc7 {[%emt 0:00:08]} 25. Rxc7+ {[%emt 0:00:05]} Rd7 {[%emt 0:00:57]} 26. Rxd7+ {[%emt 0:00:53]} Kxd7 $11 {[%emt 0:00:01][%mdl 4096] Endgame KQB-KQN} 27. Qa4+ {[%emt 0:00:34]} Bc6 {[%emt 0:00:06]} 28. Qc4 {[%emt 0:01:09]} (28. Qb3 Qc5 $15) 28... Qd5 {[%emt 0:00:44]} 29. Qb4 {[%emt 0:00:38]} Qd6 {[%emt 0:05:34]} 30. Qc4 {[%emt 0:02:39]} Qd5 {[%emt 0:03:25]} 31. Qb4 {[%emt 0:00:08]} e5 {[%emt 0:02:38]} (31... Ke8 $11) 32. Nb3 {[%emt 0:02:42]} (32. Nc4 $14 Ke6 33. Qf8 $1) 32... Ke8 {[%emt 0:00:48]} 33. a6 {[%emt 0:02:49]} bxa6 {[%emt 0:00:15]} 34. Qb8+ {[%emt 0:00:09]} Kf7 {[%emt 0:00:35]} 35. Qa7+ {[%emt 0:00:30]} Kf8 {[%emt 0:03:00]} 36. Qxa6 {[%emt 0:01:44] next Qc8+ is good for White.} e4 {[%emt 0:00:11]} 37. Qc8+ {[%emt 0:04:07]} Kf7 {[%emt 0:01:37][%cal Re4f3]} 38. Qc7+ {[%emt 0:00:08]} Kg8 $2 {[%emt 0:01:02] Black cannot hold the game after this.} (38... Kg6 $1 $11) 39. Qb8+ $18 {[%emt 0:00:20]} Kf7 {[%emt 0:00:08]} 40. Qa7+ {[%emt 0:00:08]} Kf8 {[%emt 0:01:47]} (40... Qd7 {might work better.} 41. Qxd4 exf3) 41. Qxd4 {[%emt 0:31:47]} ({Resist} 41. Nxd4 $6 exf3 42. Nxf3 (42. exf3 Bd7 $16) 42... Qe4 43. Qc5+ Ke8 $18) 41... exf3 {[%emt 0:12:38] [#]} 42. Qxd5 $1 {[%emt 0:00:00]} Bxd5 {[%emt 0:00:01]} 43. exf3 {[%emt 0:00:00][%cal Be2f3,Bf3f4][%mdl 32] KB-KN} g5 {[%emt 0:00:01]} 44. f4 {[%emt 0:00:00]} Kf7 {[%emt 0:00:29]} 45. Ke3 {[%emt 0:00:00]} ({Don't take} 45. fxg5 Kg6 46. h4 Kh5 $18) 45... Kg6 {[%emt 0:02:44]} (45... gxf4+ 46. Kxf4 Kf6) 46. Kd4 {[%emt 0:00:00]} Bf7 {[%emt 0:00:29]} 47. Ke5 {[%emt 0:00:00]} h6 {[%emt 0:00:05] [#]} 48. Nc1 $1 {[%emt 0:00:00]} Be8 {[%emt 0:01:19]} 49. Ne2 {[%emt 0:00:00]} Kh5 {[%emt 0:00:32]} 50. Nd4 {[%emt 0:00:00]} Kg4 {[%emt 0:00:28]} 51. Nxf5 {[%emt 0:00:00] Intending Nd6 and mate.} gxf4 {[%emt 0:00:08]} 52. gxf4 {[%emt 0:00:00] White mates.} h5 {[%emt 0:00:15]} 53. Nd6 {[%emt 0:00:00]} Bd7 {[%emt 0:01:33]} 54. f5 {[%emt 0:00:00]} Kg5 {[%emt 0:00:05]} 55. h4+ {Weighted Error Value: White=0.04 (flawless) /Black=0.34} 1-0

[Event "Krakow Championship-A 2022"]
[Site "Krakow"]
[Date "2022.07.01"]
[Round "8.8"]
[White "Turski, Bartlomiej"]
[Black "Murphy, Conor E"]
[Result "1-0"]
[ECO "C58"]
[WhiteElo "2192"]
[BlackElo "2395"]
[Annotator "TA"]
[PlyCount "53"]
[EventDate "2022.06.25"]
[EventType "swiss"]
[EventCountry "POL"]
[SourceTitle "playchess.com"]
[Source "ChessBase"]
[SourceQuality "1"]
[TimeControl "40/5400+30:1800+30"]

{[%evp 14,53,39,31,23,16,33,27,26,18,16,24,31,23,31,12,18,15,22,12,6,31,299,294,297,324,363,375,419,407,414,410,413,385,562,566,569,554,600,598,656,647]} 1. e4 {[%emt 0:00:03]} e5 {[%emt 0:01:57]} 2. Nf3 {[%emt 0:00:06]} Nc6 {[%emt 0:00:11]} 3. Bc4 {[%emt 0:00:05]} Nf6 {[%emt 0:00:26]} 4. Ng5 {[%emt 0:00:07]} d5 {[%emt 0:00:26]} 5. exd5 {[%emt 0:00:05]} Na5 {[%emt 0:00:07]} 6. Bb5+ {[%emt 0:00:05]} c6 {[%emt 0:00:30]} 7. dxc6 {[%emt 0:00:06]} bxc6 {[%emt 0:00:06]} 8. Bd3 {[%emt 0:00:30]} Nd5 {[%emt 0:00:30] C58: Two Knights: 4 Ng5 d5 5 exd5 Na5 sidelines.} 9. Nf3 {[%emt 0:00:30]} ({Worse is} 9. Qh5 g6 10. Nxf7 gxh5 $17) 9... Bd6 {[%emt 0:00:30]} 10. O-O {[%emt 0:00:30]} O-O {[%emt 0:00:30] White has an edge.} 11. Re1 {[%emt 0:00:30]} f5 {[%emt 0:00:30]} 12. Nxe5 {[%emt 0:00:30] Bf1 is the strong threat.} Qf6 $1 {[%emt 0:00:30]} ({Less strong is} 12... Qh4 13. Bf1 $18) 13. Nf3 {[%emt 0:00:30] Threatens to win with Bf1.} g5 $1 {[%emt 0:00:30]} 14. g3 {[%emt 0:00:30]} f4 {[%emt 0:00:30]} 15. Nc3 {[%emt 0:00:30]} fxg3 {[%emt 0:00:30] [#]} 16. hxg3 {[%emt 0:00:30][%cal Oc3e4] Hoping for Ne4!} Nxc3 {[%emt 0:00:30]} 17. dxc3 {[%emt 0:00:30][%cal Od3h7] [#] Black must now prevent Bxh7+!} g4 $146 {[%emt 0:00:30][%mdl 8192] [#] This costs Black the game.} (17... Bg4 $1 $14 18. Bxg5 Qxf3 19. Qxf3 (19. Bxh7+ $2 Kxh7 20. Qxf3 Bxf3 $19) 19... Bxf3) ({Predecessor:} 17... Bg4 18. Bxg5 Qxf3 19. Qxf3 Bxf3 20. Re6 Nb7 21. Rae1 Bd5 22. Rh6 Rf7 23. b4 Bf8 {½-½ (52) Kovalev,V (2639)-Demchenko,A (2660) Riadh 2017}) 18. Bxh7+ $1 $18 {[%emt 0:07:32][%mdl 512]} Kxh7 {[%emt 0:50:44] [#]} 19. Ng5+ {[%emt 0:01:44][%cal Bf3g5,Bg5e4,Be4d2][%mdl 32]} Kg8 {[%emt 0:00:12]} 20. Ne4 {[%emt 0:00:28][%csl LRd6,LRf6] The board is on fire.} Qg6 {[%emt 0:00:20]} 21. Qxd6 {[%emt 0:01:35]} Bf5 {[%emt 0:00:37]} 22. Qxg6+ {[%emt 0:02:46]} Bxg6 {[%emt 0:00:06]} 23. Bh6 {[%emt 0:08:17]} Rf3 {[%emt 0:00:36]} (23... Rf5 {was worth a try.} 24. Rad1 Re8) 24. Bf4 {[%emt 0:05:40] White is clearly winning.} Rf8 {[%emt 0:00:55]} 25. Nd2 {[%emt 0:00:44] Inhibits Nc4.} R3xf4 {[%emt 0:00:11]} 26. gxf4 {[%emt 0:00:02]} Bxc2 {[%emt 0:00:29]} 27. Re5 {[%emt 0:00:39] Weighted Error Value: White=0.01 (flawless) /Black=0.32} 1-0

[Event "Krakow Championship-A 2022"]
[Site "Krakow"]
[Date "2022.07.01"]
[Round "8.9"]
[White "Piekielny, Pawel"]
[Black "Danielyan, Vahe"]
[Result "0-1"]
[ECO "B15"]
[WhiteElo "2230"]
[BlackElo "2324"]
[Annotator "TA"]
[PlyCount "76"]
[EventDate "2022.06.25"]
[EventType "swiss"]
[EventCountry "POL"]
[SourceTitle "playchess.com"]
[Source "ChessBase"]
[SourceQuality "1"]
[TimeControl "40/5400+30:1800+30"]

{[%evp 12,76,24,25,56,40,63,13,7,0,15,6,9,0,16,4,0,0,36,29,29,0,11,0,21,17,32,23,29,33,27,20,28,27,24,25,25,7,117,54,63,0,0,0,0,0,0,0,0,0,0,0,0,0,0,0,0,0,0,0,0,-87,-78,-78,-79,-1711,-567]} 1. e4 {[%emt 0:00:02]} c6 {[%emt 0:00:06]} 2. d4 {[%emt 0:00:12]} d5 {[%emt 0:00:05]} 3. Nc3 {[%emt 0:00:05]} dxe4 {[%emt 0:00:05]} 4. Nxe4 {[%emt 0:00:04]} Nf6 {[%emt 0:00:05]} 5. Nxf6+ {[%emt 0:00:07]} exf6 {[%emt 0:00:05]} 6. c3 {[%emt 0:00:08]} Bd6 {[%emt 0:00:05]} 7. Bd3 {[%emt 0:00:06]} Na6 {[%emt 0:00:04] B15: Caro-Kann: 3 Nc3: 3...g6 and 3...dxe4 4 Nxe4 Nf6 5 Nxf6+ exf6.} 8. Ne2 {[%emt 0:02:58]} Nc7 {[%emt 0:00:06]} 9. O-O {[%emt 0:01:37]} (9. Qc2 $14) 9... O-O $11 {[%emt 0:00:16] [#] The position is equal.} 10. c4 $146 {[%emt 0:05:30]} ({Predecessor:} 10. Bf4 Nd5 11. Bxd6 Qxd6 12. Qd2 Bg4 13. Ng3 Rfe8 14. Rfe1 Nf4 15. Bf1 h5 16. h3 {1-0 (43) Sjugirov,S (2661)-Matlakov,M (2680) Moscow 2021}) 10... Bg4 {[%emt 0:01:04]} 11. Qc2 {[%emt 0:00:36]} g6 {[%emt 0:00:06]} 12. Be3 {[%emt 0:06:05]} Re8 {[%emt 0:00:17]} 13. h3 {[%emt 0:03:51]} Bd7 {[%emt 0:00:45]} 14. Rad1 {[%emt 0:01:27]} a5 {[%emt 0:01:42][%cal Ba7a5,Ba5a4][%mdl 32]} 15. Nc3 {[%emt 0:05:21]} f5 {[%emt 0:01:02]} 16. c5 {[%emt 0:03:37]} Bf8 {[%emt 0:00:26]} 17. Qb3 {[%emt 0:00:49]} a4 {[%emt 0:05:52]} 18. Qxb7 {[%emt 0:10:02]} Rb8 {[%emt 0:00:10]} 19. Qa7 {[%emt 0:00:05]} Rxb2 {[%emt 0:00:14]} 20. Rb1 {[%emt 0:06:35]} ({Don't play} 20. Qxa4 {[#]} Rxe3 $1 {[%mdl 512]} 21. Qa3 (21. fxe3 $2 {perishes.} Qg5 $19) 21... Rxd3 $1 {[%mdl 512]} 22. Qxb2 Rxd1 23. Rxd1 Ne6 $17) 20... Rxb1 {[%emt 0:01:30]} 21. Rxb1 {[%emt 0:00:02]} Be6 {[%emt 0:01:02][%cal Of5f4]} 22. Qxa4 {[%emt 0:00:16]} Nd5 $1 {[%emt 0:00:38]} 23. Nxd5 {[%emt 0:00:21]} Bxd5 {[%emt 0:02:55]} 24. Bc4 {[%emt 0:05:51]} Bg7 {[%emt 0:00:06]} (24... Re4 $1 $11) 25. g3 {[%emt 0:06:26]} (25. Qb3 $16) 25... h5 $14 {[%emt 0:05:15]} 26. Rb6 {[%emt 0:08:33]} (26. h4 $14) 26... Rxe3 $11 {[%emt 0:11:08]} 27. fxe3 {[%emt 0:00:16] Black must now prevent Bxd5.} Qg5 {[%emt 0:00:07][%csl LRe3,LRg3]} 28. Kf2 {[%emt 0:07:49]} f4 $1 {[%emt 0:00:04]} 29. gxf4 {[%emt 0:01:24]} Qg2+ $40 {[%emt 0:00:15][%mdl 128] Black has some attack.} 30. Ke1 {[%emt 0:00:04] Threatens to win with Bxd5.} Qg1+ {[%emt 0:00:06]} 31. Kd2 {[%emt 0:02:19]} Bxd4 $1 {[%emt 0:00:24]} 32. exd4 {[%emt 0:07:30]} Qxd4+ {[%emt 0:00:10]} 33. Kc2 {[%emt 0:00:09] And now Rb8+ would win.} Bxc4 {[%emt 0:02:11]} 34. Qb4 {[%emt 0:00:11]} Kh7 {[%emt 0:03:20]} 35. Rb8 {[%emt 0:03:10]} Qxf4 {[%emt 0:06:12]} 36. Kc3 {[%emt 0:00:21]} (36. Qb2 $11 Qf2+ 37. Kd1 Qf1+ 38. Kd2 Qf4+ 39. Kd1 Qf1+ 40. Kd2 Qg2+ 41. Kc1 Qf1+ 42. Kd2) 36... Qc1+ $17 {[%emt 0:00:52]} 37. Kd4 {[%emt 0:00:19]} Bxa2 {[%emt 0:00:29]} 38. Qc3 $2 {[%emt 0:03:25][%mdl 8192]} (38. h4 $17) 38... Qf4+ {[%emt 0:00:14] Weighted Error Value: White=0.39/Black=0.11 (very precise)} 0-1

[Event "Krakow Championship-A 2022"]
[Site "Krakow"]
[Date "2022.07.01"]
[Round "8.10"]
[White "Seemann, Jakub"]
[Black "Nurkiewicz, Maciej"]
[Result "1-0"]
[ECO "B90"]
[WhiteElo "2363"]
[BlackElo "2332"]
[Annotator "TA"]
[PlyCount "79"]
[EventDate "2022.06.25"]
[EventType "swiss"]
[EventCountry "POL"]
[SourceTitle "playchess.com"]
[Source "ChessBase"]
[SourceQuality "1"]
[TimeControl "40/5400+30:1800+30"]

{[%evp 13,79,4,18,25,20,13,37,26,40,37,51,39,39,33,32,35,43,33,43,47,47,4,7,0,12,0,19,23,55,59,59,60,82,64,126,63,63,12,59,62,60,55,158,109,236,241,231,231,227,216,302,302,252,132,215,225,210,200,226,210,210,202,182,118,764,741,887,713]} 1. e4 {[%emt 0:00:03] ChessBase II} c5 {[%emt 0:00:05]} 2. Nf3 {[%emt 0:00:04]} d6 {[%emt 0:00:05]} 3. d4 {[%emt 0:00:05]} cxd4 {[%emt 0:00:03]} 4. Nxd4 {[%emt 0:00:04]} Nf6 {[%emt 0:00:06]} 5. Nc3 {[%emt 0:00:04]} a6 {[%emt 0:00:05]} 6. h3 {[%emt 0:00:48]} e5 {[%emt 0:00:30]} 7. Nde2 {[%emt 0:00:47]} b5 {[%emt 0:04:34]} 8. g4 {[%emt 0:09:27] 8.Ng3 is the hot move. B90: Sicilian Najdorf: Unusual White 6th moves, 6 Be3 Ng4 and 6 Be3 e5.} Bb7 {[%emt 0:02:43]} 9. Bg2 {[%emt 0:00:30]} b4 {[%emt 0:06:35]} 10. Nd5 {[%emt 0:03:36] White is slightly better.} Nxd5 {[%emt 0:00:10]} 11. exd5 {[%emt 0:00:02]} Be7 {[%emt 0:00:43]} 12. a3 {[%emt 0:07:55]} a5 {[%emt 0:03:22] [#]} 13. Bd2 $146 {[%emt 0:01:08]} ({Predecessor:} 13. Be3 O-O 14. Qd2 Nd7 15. axb4 axb4 16. O-O Ba6 17. Rfc1 Qc7 18. Ng3 Rfb8 19. c4 bxc3 20. Rxc3 {½-½ (28) Santos Ruiz,M (2549)-Vachier Lagrave,M (2780) Brest 2019 CBM 190 Extra [ChessBase II]}) 13... Na6 {[%emt 0:01:29]} 14. O-O {[%emt 0:02:09]} O-O {[%emt 0:01:42]} 15. Ng3 {[%emt 0:02:45]} Bg5 {[%emt 0:05:52]} 16. Bxg5 {[%emt 0:10:15]} Qxg5 {[%emt 0:00:17]} 17. Nf5 {[%emt 0:01:08]} Qd8 {[%emt 0:07:56]} 18. axb4 {[%emt 0:04:19]} axb4 {[%emt 0:00:21]} 19. Qd2 {[%emt 0:00:07]} g6 {[%emt 0:17:01]} 20. Ne3 {[%emt 0:00:38]} Rc8 {[%emt 0:03:14]} 21. f4 {[%emt 0:06:48]} exf4 {[%emt 0:24:54]} 22. Rxf4 {[%emt 0:00:03]} Rc5 {[%emt 0:00:55]} 23. Raf1 {[%emt 0:03:19][%cal Oh3h4]} (23. Qd4 {is more complex.} Bc8 24. Raf1 Qe7 25. Re4) 23... Qe7 {[%emt 0:02:16]} (23... Rc7 $14) 24. Re4 {[%emt 0:11:05]} ({White should try} 24. g5 $16 {And now Ng4 would win.} Bc8 25. h4) 24... Qd8 $14 {[%emt 0:02:08]} 25. Qd4 {[%emt 0:00:36] White is more active.} (25. Rd4 $14) 25... Nc7 {[%emt 0:01:17]} (25... b3 $1 $11 {feels stronger.}) 26. Ref4 {[%emt 0:00:50]} Qe7 {[%emt 0:01:12]} 27. Rd1 $40 {[%emt 0:10:07][%mdl 128] Black needs to defend precisely.} Rb8 {[%emt 0:07:11]} (27... Rb5 $14) 28. g5 $16 {[%emt 0:05:26] Threatens to win with Ng4.} Qxg5 {[%emt 0:03:17]} (28... Nb5 $16 29. Qd2 Qxg5 30. Rxb4 f5) 29. h4 $1 $18 {[%emt 0:00:20]} Qe5 {[%emt 0:02:54]} (29... Qg3 $2 30. Ng4 (30. Nf1 Qxg2+ 31. Kxg2 Rxd5 $16) 30... Qxg4 31. Rxg4 $18) 30. Qxe5 {[%emt 0:00:24]} dxe5 {[%emt 0:00:02]} 31. Rxb4 {[%emt 0:00:11]} Rb5 {[%emt 0:00:57]} 32. Rxb5 {[%emt 0:01:32]} Nxb5 {[%emt 0:00:02]} 33. Ng4 {[%emt 0:02:14]} (33. c4 $1 $18 {[%cal Rc4b5]} Nd4 34. c5) 33... Nd4 {[%emt 0:01:04]} (33... Rc8 $16) 34. Nxe5 {[%emt 0:05:26]} Nxc2 {[%emt 0:00:17] [#]} 35. Nc6 $1 {[%emt 0:00:08]} Ra8 {[%emt 0:01:54]} 36. d6 {[%emt 0:00:15]} Bxc6 {[%emt 0:00:21]} 37. Bxc6 {[%emt 0:00:02]} Rd8 {[%emt 0:00:11] [#]} 38. d7 {[%emt 0:00:24]} (38. Kf2 $1 $18) 38... Nb4 $2 {[%emt 0:01:02][%mdl 8192]} (38... f5 $16) 39. Bb5 {[%emt 0:00:26]} f5 {[%emt 0:00:07]} 40. Re1 {[%emt 0:00:18] Weighted Error Value: White=0.14 (very precise) /Black=0.26 (precise)} 1-0